[Event "*** Titled Tuesday Blitz"]
[Site "Chess.com"]
[Date "2020.12.29"]
[Round "8"]
[White "PhoenixFire8"]
[Black "Europe03"]
[Result "1/2-1/2"]
[WhiteElo "2443"]
[BlackElo "2333"]
[TimeControl "180+1"]
[EndTime "11:28:14 PST"]
[Termination "Game drawn by repetition"]

1. Nf3 {[%clk 0:03:00.9]} 1... d5 {[%clk 0:02:57.8]} 2. b3 {[%clk 0:03:01.1]}
2... c5 {[%clk 0:02:53.7]} 3. Bb2 {[%clk 0:03:01.5]} 3... Nc6 {[%clk 0:02:54.4]}
4. e3 {[%clk 0:03:01.7]} 4... a6 {[%clk 0:02:54.3]} 5. d4 {[%clk 0:03:01.2]}
5... cxd4 {[%clk 0:02:52.9]} 6. exd4 {[%clk 0:03:00.4]} 6... Nf6 {[%clk
0:02:51.9]} 7. Bd3 {[%clk 0:03:00.2]} 7... Bg4 {[%clk 0:02:50.6]} 8. Nbd2 {[%clk
0:02:58.7]} 8... e6 {[%clk 0:02:48.4]} 9. Nf1 {[%clk 0:02:58.5]} 9... Bd6 {[%clk
0:02:46.6]} 10. Ng3 {[%clk 0:02:58.8]} 10... O-O {[%clk 0:02:39.2]} 11. h3
{[%clk 0:02:58.6]} 11... Bxg3 {[%clk 0:02:23.1]} 12. hxg4 {[%clk 0:02:58.3]}
12... Bf4 {[%clk 0:02:12.9]} 13. g3 {[%clk 0:02:34]} 13... Bd6 {[%clk
0:02:10.1]} 14. Qe2 {[%clk 0:02:19]} 14... g6 {[%clk 0:01:32.6]} 15. g5 {[%clk
0:02:15.6]} 15... Nh5 {[%clk 0:01:24.8]} 16. O-O-O {[%clk 0:02:08.9]} 16... Nb4
{[%clk 0:01:22.4]} 17. Kb1 {[%clk 0:01:45.7]} 17... Qa5 {[%clk 0:01:14.3]} 18.
a3 {[%clk 0:01:35.1]} 18... Nxd3 {[%clk 0:01:10.7]} 19. Qxd3 {[%clk 0:01:33.4]}
19... Bxa3 {[%clk 0:01:07.2]} 20. Bxa3 {[%clk 0:01:18.6]} 20... Qxa3 {[%clk
0:01:07.1]} 21. Rxh5 {[%clk 0:01:19]} 21... gxh5 {[%clk 0:01:03]} 22. Rh1 {[%clk
0:01:19.5]} 22... f6 {[%clk 0:00:53.2]} 23. Rxh5 {[%clk 0:01:03.3]} 23... Qe7
{[%clk 0:00:50]} 24. Qe3 {[%clk 0:00:39.6]} 24... Rf7 {[%clk 0:00:33.7]} 25. Rh6
{[%clk 0:00:38.6]} 25... Raf8 {[%clk 0:00:30.2]} 26. Rh5 {[%clk 0:00:23.2]}
26... Rg7 {[%clk 0:00:29.6]} 27. gxf6 {[%clk 0:00:21.8]} 27... Qxf6 {[%clk
0:00:28]} 28. Ng5 {[%clk 0:00:15.3]} 28... Qxf2 {[%clk 0:00:22.1]} 29. Qxe6+
{[%clk 0:00:15.3]} 29... Kh8 {[%clk 0:00:21.9]} 30. Qe5 {[%clk 0:00:13.7]} 30...
Qf1+ {[%clk 0:00:16.6]} 31. Kb2 {[%clk 0:00:13.5]} 31... Qf6 {[%clk 0:00:16.1]}
32. Qxd5 {[%clk 0:00:12.1]} 32... Rd8 {[%clk 0:00:15]} 33. Qe5 {[%clk
0:00:11.1]} 33... Qxe5 {[%clk 0:00:14.6]} 34. dxe5 {[%clk 0:00:12]} 34... Rd5
{[%clk 0:00:13.1]} 35. Ne6 {[%clk 0:00:11.2]} 35... Rxg3 {[%clk 0:00:12]} 36.
Nf4 {[%clk 0:00:10.8]} 36... Rd8 {[%clk 0:00:10.1]} 37. e6 {[%clk 0:00:11.3]}
37... Re8 {[%clk 0:00:10.2]} 38. Re5 {[%clk 0:00:11.3]} 38... Rf3 {[%clk
0:00:10.3]} 39. Nd5 {[%clk 0:00:11.6]} 39... Kg7 {[%clk 0:00:09.7]} 40. Nc7
{[%clk 0:00:11.7]} 40... Re7 {[%clk 0:00:09.2]} 41. Nd5 {[%clk 0:00:11.9]} 41...
Re8 {[%clk 0:00:09.3]} 42. Nc7 {[%clk 0:00:11.5]} 42... Re7 {[%clk 0:00:08]} 43.
Nd5 {[%clk 0:00:11.7]} 43... Re8 {[%clk 0:00:07.5]} 1/2-1/2

[Event "*** Titled Tuesday Blitz"]
[Site "Chess.com"]
[Date "2020.12.29"]
[Round "8"]
[White "ChampStan"]
[Black "Sergienko_Sergey"]
[Result "0-1"]
[WhiteElo "2174"]
[BlackElo "2302"]
[TimeControl "180+1"]
[EndTime "11:28:15 PST"]
[Termination "Sergienko_Sergey won on time"]

1. d4 {[%clk 0:03:00.4]} 1... Nf6 {[%clk 0:02:59.1]} 2. c4 {[%clk 0:02:59.3]}
2... c5 {[%clk 0:02:58.3]} 3. d5 {[%clk 0:02:57.7]} 3... e5 {[%clk 0:02:58.1]}
4. Nc3 {[%clk 0:02:56.8]} 4... d6 {[%clk 0:02:58.2]} 5. e4 {[%clk 0:02:54.8]}
5... Be7 {[%clk 0:02:58.3]} 6. Nf3 {[%clk 0:02:51.4]} 6... Nbd7 {[%clk
0:02:58.1]} 7. Bd3 {[%clk 0:02:46.5]} 7... Nf8 {[%clk 0:02:57.7]} 8. Ne2 {[%clk
0:02:32.9]} 8... Ng6 {[%clk 0:02:56.6]} 9. h3 {[%clk 0:02:30.9]} 9... h6 {[%clk
0:02:49.5]} 10. Be3 {[%clk 0:02:22.8]} 10... O-O {[%clk 0:02:46.6]} 11. O-O
{[%clk 0:02:15.6]} 11... Nh7 {[%clk 0:02:45.3]} 12. Ng3 {[%clk 0:02:13]} 12...
Bg5 {[%clk 0:02:37.7]} 13. Nxg5 {[%clk 0:02:02.1]} 13... Nxg5 {[%clk 0:02:37.3]}
14. Nf5 {[%clk 0:01:59.8]} 14... Qf6 {[%clk 0:02:17.6]} 15. Qh5 {[%clk 0:01:33]}
15... Nf4 {[%clk 0:02:14]} 16. Bxf4 {[%clk 0:01:32.2]} 16... exf4 {[%clk
0:02:14]} 17. Nh4 {[%clk 0:01:23.2]} 17... f3 {[%clk 0:02:04.5]} 18. Nxf3 {[%clk
0:01:17.8]} 18... g6 {[%clk 0:01:34.4]} 19. Qxh6 {[%clk 0:00:59.4]} 19... Nxf3+
{[%clk 0:01:33.7]} 20. gxf3 {[%clk 0:00:59.1]} 20... Qxf3 {[%clk 0:01:34]} 21.
Qe3 {[%clk 0:00:48.7]} 21... Qxh3 {[%clk 0:01:28.1]} 22. Qxh3 {[%clk 0:00:47.6]}
22... Bxh3 {[%clk 0:01:27.4]} 23. Rfb1 {[%clk 0:00:47.5]} 23... Rae8 {[%clk
0:01:18.4]} 24. b4 {[%clk 0:00:41.6]} 24... cxb4 {[%clk 0:01:14.2]} 25. Rxb4
{[%clk 0:00:40.8]} 25... b6 {[%clk 0:01:14.2]} 26. a4 {[%clk 0:00:29.1]} 26...
f5 {[%clk 0:01:10.5]} 27. Re1 {[%clk 0:00:26]} 27... fxe4 {[%clk 0:01:01.5]} 28.
Rxe4 {[%clk 0:00:25]} 28... Rxe4 {[%clk 0:00:59.3]} 29. Bxe4 {[%clk 0:00:24.7]}
29... Kg7 {[%clk 0:00:57.3]} 30. a5 {[%clk 0:00:23.5]} 30... bxa5 {[%clk
0:00:55.8]} 31. Ra4 {[%clk 0:00:22.1]} 31... Rf4 {[%clk 0:00:51.6]} 32. f3
{[%clk 0:00:21.2]} 32... Bf5 {[%clk 0:00:50.4]} 33. Bxf5 {[%clk 0:00:19.9]}
33... gxf5 {[%clk 0:00:50.2]} 34. Kf2 {[%clk 0:00:19]} 34... Kf6 {[%clk
0:00:46.7]} 35. Ke3 {[%clk 0:00:15.9]} 35... Ke5 {[%clk 0:00:46.2]} 36. Rxa5
{[%clk 0:00:12.2]} 36... Rxc4 {[%clk 0:00:45.5]} 37. Rxa7 {[%clk 0:00:12.1]}
37... Rc3+ {[%clk 0:00:43.6]} 38. Kf2 {[%clk 0:00:10.9]} 38... Kxd5 {[%clk
0:00:43.3]} 39. Ra5+ {[%clk 0:00:10.5]} 39... Rc5 {[%clk 0:00:41.4]} 40. Ra4
{[%clk 0:00:09.4]} 40... Rc4 {[%clk 0:00:38.8]} 41. Ra5+ {[%clk 0:00:08.5]}
41... Ke6 {[%clk 0:00:38.8]} 42. Kg3 {[%clk 0:00:08.1]} 42... d5 {[%clk
0:00:37.6]} 43. Ra6+ {[%clk 0:00:07.1]} 43... Ke5 {[%clk 0:00:37.5]} 44. Ra8
{[%clk 0:00:05.3]} 44... Rc1 {[%clk 0:00:31]} 0-1

[Event "*** Titled Tuesday Blitz"]
[Site "Chess.com"]
[Date "2020.12.29"]
[Round "8"]
[White "NMShanMeruga"]
[Black "Lagmantr"]
[Result "1-0"]
[WhiteElo "2462"]
[BlackElo "2769"]
[TimeControl "180+1"]
[EndTime "11:28:21 PST"]
[Termination "NMShanMeruga won on time"]

1. e4 {[%clk 0:03:00.9]} 1... c6 {[%clk 0:03:00.5]} 2. d4 {[%clk 0:03:00.9]}
2... d5 {[%clk 0:03:01.4]} 3. Nc3 {[%clk 0:03:01.4]} 3... dxe4 {[%clk
0:03:01.8]} 4. f3 {[%clk 0:02:55.8]} 4... e5 {[%clk 0:03:00.8]} 5. dxe5 {[%clk
0:02:51.6]} 5... Qxd1+ {[%clk 0:03:01]} 6. Kxd1 {[%clk 0:02:52.2]} 6... exf3
{[%clk 0:02:58.9]} 7. Nxf3 {[%clk 0:02:50.5]} 7... Be6 {[%clk 0:02:58.9]} 8. Ng5
{[%clk 0:02:48]} 8... Nd7 {[%clk 0:02:58.9]} 9. Nxe6 {[%clk 0:02:45.1]} 9...
fxe6 {[%clk 0:02:59.8]} 10. Bf4 {[%clk 0:02:44.1]} 10... Ne7 {[%clk 0:02:59]}
11. Bc4 {[%clk 0:02:38.7]} 11... Nd5 {[%clk 0:02:59.3]} 12. Nxd5 {[%clk
0:02:35.5]} 12... cxd5 {[%clk 0:02:50.9]} 13. Be2 {[%clk 0:02:32.8]} 13... h5
{[%clk 0:02:29.3]} 14. Kd2 {[%clk 0:02:30]} 14... Be7 {[%clk 0:02:23.1]} 15. c3
{[%clk 0:02:25.4]} 15... g5 {[%clk 0:02:21.8]} 16. Be3 {[%clk 0:02:21.3]} 16...
Nxe5 {[%clk 0:02:20.9]} 17. Bd4 {[%clk 0:02:18.7]} 17... Bd6 {[%clk 0:02:20.9]}
18. Rae1 {[%clk 0:02:15.5]} 18... Ke7 {[%clk 0:02:11.7]} 19. Kc2 {[%clk
0:02:08.6]} 19... Rh6 {[%clk 0:01:51.9]} 20. Be3 {[%clk 0:02:05.1]} 20... Rg8
{[%clk 0:01:48.4]} 21. h4 {[%clk 0:02:02.9]} 21... Nf7 {[%clk 0:01:46.4]} 22.
hxg5 {[%clk 0:01:59.5]} 22... Nxg5 {[%clk 0:01:47.3]} 23. Rxh5 {[%clk
0:01:59.7]} 23... Rxh5 {[%clk 0:01:47.3]} 24. Bxh5 {[%clk 0:02:00.5]} 24... Ne4
{[%clk 0:01:44.3]} 25. Bf3 {[%clk 0:01:58.5]} 25... b6 {[%clk 0:01:27.2]} 26. g4
{[%clk 0:01:56.6]} 26... Nf6 {[%clk 0:01:13.6]} 27. g5 {[%clk 0:01:54.5]} 27...
Nh7 {[%clk 0:01:13.3]} 28. Rg1 {[%clk 0:01:45.5]} 28... Bc5 {[%clk 0:01:13.1]}
29. g6 {[%clk 0:01:42.3]} 29... Nf8 {[%clk 0:01:01.5]} 30. Bxc5+ {[%clk
0:01:35.3]} 30... bxc5 {[%clk 0:01:01.6]} 31. c4 {[%clk 0:01:35.8]} 31... d4
{[%clk 0:00:53.2]} 32. Be4 {[%clk 0:01:30.6]} 32... Kf6 {[%clk 0:00:49.9]} 33.
b4 {[%clk 0:01:22.9]} 33... cxb4 {[%clk 0:00:35.8]} 34. c5 {[%clk 0:01:20.5]}
34... Ke5 {[%clk 0:00:27.1]} 35. Kd3 {[%clk 0:01:15]} 35... Nd7 {[%clk 0:00:27]}
36. Rc1 {[%clk 0:01:12.1]} 36... Nf6 {[%clk 0:00:27]} 37. Bh1 {[%clk 0:01:08.2]}
37... Rxg6 {[%clk 0:00:26.5]} 38. Re1+ {[%clk 0:01:01.1]} 38... Kf5 {[%clk
0:00:17.3]} 39. c6 {[%clk 0:01:02]} 39... Rg3+ {[%clk 0:00:16.7]} 40. Kxd4
{[%clk 0:00:59.9]} 40... Rc3 {[%clk 0:00:17.2]} 41. Rf1+ {[%clk 0:00:55.6]}
41... Kg6 {[%clk 0:00:16.6]} 42. Ke5 {[%clk 0:00:53.3]} 42... Nd5 {[%clk
0:00:09.4]} 43. Kxe6 {[%clk 0:00:51.7]} 43... Ne3 {[%clk 0:00:09.5]} 44. Rg1+
{[%clk 0:00:49.8]} 44... Kh5 {[%clk 0:00:09.2]} 45. Bf3+ {[%clk 0:00:47.4]}
45... Kh4 {[%clk 0:00:09.7]} 46. Ke5 {[%clk 0:00:43.5]} 46... Nc2 {[%clk
0:00:02.2]} 47. Be4 {[%clk 0:00:41.5]} 47... Ne3 {[%clk 0:00:01.4]} 48. Kf4
{[%clk 0:00:39.7]} 48... Nc2 {[%clk 0:00:01.6]} 49. Rh1+ {[%clk 0:00:29.4]} 1-0

[Event "*** Titled Tuesday Blitz"]
[Site "Chess.com"]
[Date "2020.12.29"]
[Round "8"]
[White "FGHSMN"]
[Black "ShahMatKanal"]
[Result "1-0"]
[WhiteElo "2650"]
[BlackElo "2452"]
[TimeControl "180+1"]
[EndTime "11:28:21 PST"]
[Termination "FGHSMN won by resignation"]

1. e4 {[%clk 0:03:00.9]} 1... c5 {[%clk 0:02:59]} 2. Nf3 {[%clk 0:03:00.2]} 2...
Nc6 {[%clk 0:02:59.4]} 3. d4 {[%clk 0:02:58.8]} 3... cxd4 {[%clk 0:03:00.3]} 4.
Nxd4 {[%clk 0:02:59.1]} 4... e5 {[%clk 0:03:00.8]} 5. Nb5 {[%clk 0:02:58.4]}
5... a6 {[%clk 0:03:01]} 6. Nd6+ {[%clk 0:02:54.7]} 6... Bxd6 {[%clk 0:03:01.3]}
7. Qxd6 {[%clk 0:02:55.3]} 7... Qf6 {[%clk 0:03:02.2]} 8. Qd1 {[%clk 0:02:52.4]}
8... Qg6 {[%clk 0:03:01.4]} 9. Nc3 {[%clk 0:02:51.6]} 9... Nf6 {[%clk
0:03:01.7]} 10. f3 {[%clk 0:02:45.7]} 10... d5 {[%clk 0:02:55.2]} 11. Nxd5
{[%clk 0:02:05.2]} 11... Nxd5 {[%clk 0:02:50.4]} 12. Qxd5 {[%clk 0:01:55.8]}
12... O-O {[%clk 0:02:37.9]} 13. Qd2 {[%clk 0:01:43.7]} 13... Rd8 {[%clk
0:02:10.9]} 14. Bd3 {[%clk 0:01:41]} 14... Be6 {[%clk 0:02:03.5]} 15. O-O {[%clk
0:01:31.7]} 15... Bc4 {[%clk 0:02:02.8]} 16. Bxc4 {[%clk 0:01:08.9]} 16... Rxd2
{[%clk 0:02:01.3]} 17. Bxd2 {[%clk 0:01:09.8]} 17... Nd4 {[%clk 0:01:54.8]} 18.
Bd3 {[%clk 0:01:05.3]} 18... Rd8 {[%clk 0:01:51.4]} 19. Be3 {[%clk 0:00:59.3]}
19... h5 {[%clk 0:01:43.7]} 20. Rad1 {[%clk 0:00:56.7]} 20... h4 {[%clk
0:01:41.9]} 21. h3 {[%clk 0:00:54.3]} 21... Qb6 {[%clk 0:01:19.6]} 22. c3 {[%clk
0:00:38.1]} 22... Qxb2 {[%clk 0:00:57.4]} 23. cxd4 {[%clk 0:00:36.9]} 23... exd4
{[%clk 0:00:57.7]} 24. Bg5 {[%clk 0:00:33.6]} 24... Rc8 {[%clk 0:00:50.9]} 25.
Rd2 {[%clk 0:00:24.3]} 25... Qb4 {[%clk 0:00:44.3]} 26. Rfd1 {[%clk 0:00:24.3]}
26... f6 {[%clk 0:00:30.1]} 27. Bxh4 {[%clk 0:00:20.3]} 27... b5 {[%clk
0:00:30.3]} 28. Be1 {[%clk 0:00:19.4]} 28... Qc5 {[%clk 0:00:27.7]} 29. Rc2
{[%clk 0:00:19]} 29... Qf8 {[%clk 0:00:27.2]} 30. Rdc1 {[%clk 0:00:18.9]} 30...
Rxc2 {[%clk 0:00:24]} 31. Rxc2 {[%clk 0:00:19.8]} 31... Qa3 {[%clk 0:00:22.6]}
32. Rd2 {[%clk 0:00:15.2]} 32... b4 {[%clk 0:00:21.5]} 33. Kf2 {[%clk
0:00:11.7]} 33... Kh7 {[%clk 0:00:19.7]} 34. e5+ {[%clk 0:00:10.8]} 34... g6
{[%clk 0:00:08.7]} 35. e6 {[%clk 0:00:10.9]} 35... Kg7 {[%clk 0:00:05.8]} 36. e7
{[%clk 0:00:10.8]} 36... Qa4 {[%clk 0:00:03.5]} 37. Re2 {[%clk 0:00:10.5]} 37...
Qe8 {[%clk 0:00:02.9]} 38. Bxa6 {[%clk 0:00:10.6]} 38... d3 {[%clk 0:00:02.4]}
39. Bxd3 {[%clk 0:00:10.1]} 39... Kf7 {[%clk 0:00:02.1]} 40. Bc4+ {[%clk
0:00:09.9]} 40... Kg7 {[%clk 0:00:02.4]} 41. Bb5 {[%clk 0:00:10.4]} 41... Qxb5
{[%clk 0:00:02.7]} 42. e8=Q {[%clk 0:00:10.6]} 42... Qc5+ {[%clk 0:00:03.1]} 43.
Kf1 {[%clk 0:00:10.7]} 1-0

[Event "*** Titled Tuesday Blitz"]
[Site "Chess.com"]
[Date "2020.12.29"]
[Round "8"]
[White "MasterKroket"]
[Black "Agoking701"]
[Result "1/2-1/2"]
[WhiteElo "2463"]
[BlackElo "2354"]
[TimeControl "180+1"]
[EndTime "11:28:21 PST"]
[Termination "Game drawn by repetition"]

1. d4 {[%clk 0:03:00.9]} 1... Nf6 {[%clk 0:02:59]} 2. c4 {[%clk 0:03:01.4]} 2...
e6 {[%clk 0:02:59.9]} 3. Nf3 {[%clk 0:03:01.6]} 3... Bb4+ {[%clk 0:02:59.2]} 4.
Bd2 {[%clk 0:03:01.6]} 4... Nc6 {[%clk 0:02:58.5]} 5. a3 {[%clk 0:02:58.6]} 5...
Bxd2+ {[%clk 0:02:57.5]} 6. Nbxd2 {[%clk 0:02:59]} 6... O-O {[%clk 0:02:55.7]}
7. e4 {[%clk 0:02:57.9]} 7... d6 {[%clk 0:02:55.2]} 8. h3 {[%clk 0:02:51.7]}
8... e5 {[%clk 0:02:51.9]} 9. d5 {[%clk 0:02:51.8]} 9... Ne7 {[%clk 0:02:51.7]}
10. b4 {[%clk 0:02:40.2]} 10... Ng6 {[%clk 0:02:46]} 11. g3 {[%clk 0:02:38.6]}
11... Ne8 {[%clk 0:02:38.3]} 12. h4 {[%clk 0:02:27.9]} 12... f5 {[%clk
0:02:35.6]} 13. h5 {[%clk 0:02:25.6]} 13... Ne7 {[%clk 0:02:32.9]} 14. Bd3
{[%clk 0:02:20.5]} 14... fxe4 {[%clk 0:02:27.6]} 15. Bxe4 {[%clk 0:02:18.3]}
15... Nf6 {[%clk 0:02:26.1]} 16. Nh4 {[%clk 0:01:35.2]} 16... Nxe4 {[%clk
0:01:53.2]} 17. Nxe4 {[%clk 0:01:33.8]} 17... Nf5 {[%clk 0:01:53.7]} 18. Nxf5
{[%clk 0:01:19.2]} 18... Bxf5 {[%clk 0:01:54.6]} 19. Qe2 {[%clk 0:01:19.9]}
19... a5 {[%clk 0:01:32.9]} 20. b5 {[%clk 0:01:19.6]} 20... b6 {[%clk
0:01:29.8]} 21. h6 {[%clk 0:01:17.7]} 21... g6 {[%clk 0:01:29]} 22. Qe3 {[%clk
0:01:13.8]} 22... Bxe4 {[%clk 0:01:17.1]} 23. Qxe4 {[%clk 0:01:13.9]} 23... Qg5
{[%clk 0:01:16.5]} 24. Rh4 {[%clk 0:00:54.1]} 24... Rf7 {[%clk 0:01:14.3]} 25.
Qg4 {[%clk 0:00:44.8]} 25... Qf6 {[%clk 0:01:08.6]} 26. Ra2 {[%clk 0:00:40.2]}
26... e4 {[%clk 0:01:02.3]} 27. Qe6 {[%clk 0:00:35.5]} 27... Qc3+ {[%clk
0:00:53.5]} 28. Rd2 {[%clk 0:00:30]} 28... Qc1+ {[%clk 0:00:45.7]} 29. Rd1
{[%clk 0:00:24.5]} 29... Qxc4 {[%clk 0:00:45.2]} 30. Rxe4 {[%clk 0:00:23.3]}
30... Qc3+ {[%clk 0:00:42.7]} 31. Rd2 {[%clk 0:00:20.5]} 31... Rf8 {[%clk
0:00:40.4]} 32. Rf4 {[%clk 0:00:18.7]} 32... Qe5+ {[%clk 0:00:24.1]} 33. Re2
{[%clk 0:00:18.8]} 33... Qa1+ {[%clk 0:00:23]} 34. Kd2 {[%clk 0:00:17.8]} 34...
Qb2+ {[%clk 0:00:22.4]} 35. Kd1 {[%clk 0:00:16.6]} 35... Qa1+ {[%clk 0:00:20]}
36. Kd2 {[%clk 0:00:16.8]} 36... Qxa3 {[%clk 0:00:20.5]} 37. Rxf7 {[%clk
0:00:15.3]} 37... Rxf7 {[%clk 0:00:21.4]} 38. Qc8+ {[%clk 0:00:09.5]} 38... Rf8
{[%clk 0:00:20.1]} 39. Qxc7 {[%clk 0:00:09.5]} 39... Qb2+ {[%clk 0:00:19.4]} 40.
Kd1 {[%clk 0:00:06.9]} 40... Qb1+ {[%clk 0:00:17.5]} 41. Kd2 {[%clk 0:00:06.9]}
41... Qb2+ {[%clk 0:00:17.1]} 42. Kd1 {[%clk 0:00:04.6]} 42... Qb1+ {[%clk
0:00:14.9]} 43. Kd2 {[%clk 0:00:05]} 43... Qb2+ {[%clk 0:00:10.8]} 1/2-1/2

[Event "*** Titled Tuesday Blitz"]
[Site "Chess.com"]
[Date "2020.12.29"]
[Round "8"]
[White "annacramling"]
[Black "Chernov_Alexander_A"]
[Result "0-1"]
[WhiteElo "2081"]
[BlackElo "2316"]
[TimeControl "180+1"]
[EndTime "11:28:22 PST"]
[Termination "Chernov_Alexander_A won on time"]

1. d4 {[%clk 0:03:00.9]} 1... Nf6 {[%clk 0:02:59.2]} 2. c4 {[%clk 0:02:56.5]}
2... e6 {[%clk 0:02:58.8]} 3. Nc3 {[%clk 0:02:56.4]} 3... d5 {[%clk 0:02:58.3]}
4. cxd5 {[%clk 0:02:55.5]} 4... Nxd5 {[%clk 0:02:57.5]} 5. e4 {[%clk 0:02:54]}
5... Nxc3 {[%clk 0:02:57.4]} 6. bxc3 {[%clk 0:02:54.9]} 6... c5 {[%clk
0:02:57.7]} 7. Nf3 {[%clk 0:02:52.9]} 7... cxd4 {[%clk 0:02:57.8]} 8. cxd4
{[%clk 0:02:52.8]} 8... Bb4+ {[%clk 0:02:58.2]} 9. Bd2 {[%clk 0:02:51.4]} 9...
Bxd2+ {[%clk 0:02:58.5]} 10. Qxd2 {[%clk 0:02:52.3]} 10... O-O {[%clk
0:02:58.4]} 11. Be2 {[%clk 0:02:50.3]} 11... Nd7 {[%clk 0:02:58.2]} 12. O-O
{[%clk 0:02:50.4]} 12... Nf6 {[%clk 0:02:58.2]} 13. Bd3 {[%clk 0:02:44.4]} 13...
b6 {[%clk 0:02:57.7]} 14. Rac1 {[%clk 0:02:31.1]} 14... Bb7 {[%clk 0:02:57.6]}
15. Qf4 {[%clk 0:02:13.9]} 15... Rc8 {[%clk 0:02:44.6]} 16. e5 {[%clk
0:02:05.2]} 16... Nd5 {[%clk 0:02:28.9]} 17. Rxc8 {[%clk 0:01:04.4]} 17... Nxf4
{[%clk 0:02:19]} 18. Rxd8 {[%clk 0:00:52.4]} 18... Rxd8 {[%clk 0:02:18.6]} 19.
Rd1 {[%clk 0:00:41.1]} 19... Bxf3 {[%clk 0:02:04.6]} 20. gxf3 {[%clk 0:00:41]}
20... g5 {[%clk 0:01:59.8]} 21. Be4 {[%clk 0:00:35.5]} 21... Rc8 {[%clk
0:01:55.8]} 22. d5 {[%clk 0:00:26.2]} 22... exd5 {[%clk 0:01:55.2]} 23. Bxd5
{[%clk 0:00:26.2]} 23... Rc5 {[%clk 0:01:44.2]} 24. Be4 {[%clk 0:00:15.1]} 24...
Rxe5 {[%clk 0:01:43]} 25. Kf1 {[%clk 0:00:12.1]} 25... Kg7 {[%clk 0:01:36.2]}
26. Rc1 {[%clk 0:00:10.7]} 26... Ra5 {[%clk 0:01:33.3]} 27. Rc2 {[%clk
0:00:09.6]} 27... h5 {[%clk 0:01:31.3]} 28. Ke1 {[%clk 0:00:08]} 28... h4 {[%clk
0:01:20.2]} 29. Kd2 {[%clk 0:00:05.7]} 29... Kf6 {[%clk 0:01:14.1]} 30. Ke3
{[%clk 0:00:05.9]} 30... Ra3+ {[%clk 0:01:12.7]} 31. Kd4 {[%clk 0:00:05.8]}
31... Ra4+ {[%clk 0:00:58.2]} 32. Ke3 {[%clk 0:00:05.2]} 32... Kg7 {[%clk
0:00:51]} 33. Rd2 {[%clk 0:00:03.2]} 33... Ra5 {[%clk 0:00:46.2]} 34. Rc2 {[%clk
0:00:03.1]} 34... f5 {[%clk 0:00:45.2]} 35. Bc6 {[%clk 0:00:01.5]} 35... Kf6
{[%clk 0:00:34.5]} 36. a4 {[%clk 0:00:02.1]} 36... Rc5 {[%clk 0:00:32]} 37. Rxc5
{[%clk 0:00:01.4]} 37... bxc5 {[%clk 0:00:32]} 38. Bb5 {[%clk 0:00:01.8]} 38...
Ke5 {[%clk 0:00:29.5]} 39. Kd2 {[%clk 0:00:02]} 39... Kd4 {[%clk 0:00:28.2]} 40.
Bd7 {[%clk 0:00:02.2]} 40... Ke5 {[%clk 0:00:18.8]} 41. Kc3 {[%clk 0:00:02.6]}
41... Nh3 {[%clk 0:00:10]} 42. Kc4 {[%clk 0:00:02.1]} 42... Kd6 {[%clk
0:00:09.8]} 43. Bxf5 {[%clk 0:00:01.8]} 43... Nxf2 {[%clk 0:00:10]} 0-1

[Event "*** Titled Tuesday Blitz"]
[Site "Chess.com"]
[Date "2020.12.29"]
[Round "8"]
[White "EugeneRougon"]
[Black "rychessmaster1"]
[Result "1-0"]
[WhiteElo "2757"]
[BlackElo "2568"]
[TimeControl "180+1"]
[EndTime "11:28:23 PST"]
[Termination "EugeneRougon won by checkmate"]

1. e4 {[%clk 0:03:00.9]} 1... c6 {[%clk 0:03:00.4]} 2. d4 {[%clk 0:02:59.1]}
2... d5 {[%clk 0:03:01.1]} 3. Nc3 {[%clk 0:02:57.6]} 3... dxe4 {[%clk
0:03:01.3]} 4. Nxe4 {[%clk 0:02:58.5]} 4... Nf6 {[%clk 0:03:01.7]} 5. Nxf6+
{[%clk 0:02:58.8]} 5... exf6 {[%clk 0:03:02.6]} 6. c3 {[%clk 0:02:59.1]} 6...
Bd6 {[%clk 0:03:03.2]} 7. Bd3 {[%clk 0:02:59.8]} 7... O-O {[%clk 0:03:03.8]} 8.
Qc2 {[%clk 0:03:00.4]} 8... Re8+ {[%clk 0:03:04.5]} 9. Ne2 {[%clk 0:03:01.1]}
9... h5 {[%clk 0:03:05.1]} 10. Be3 {[%clk 0:03:01.7]} 10... Nd7 {[%clk
0:03:04.7]} 11. O-O-O {[%clk 0:03:02.2]} 11... b5 {[%clk 0:03:05.3]} 12. Ng3
{[%clk 0:02:57.4]} 12... Nb6 {[%clk 0:02:59.3]} 13. Nxh5 {[%clk 0:02:29.9]}
13... Nd5 {[%clk 0:02:55]} 14. Rde1 {[%clk 0:02:11.6]} 14... Qa5 {[%clk
0:02:04.8]} 15. a3 {[%clk 0:01:52.1]} 15... Nxe3 {[%clk 0:01:56.2]} 16. Rxe3
{[%clk 0:01:34.7]} 16... Rxe3 {[%clk 0:01:56.6]} 17. fxe3 {[%clk 0:01:35.6]}
17... b4 {[%clk 0:01:57.2]} 18. cxb4 {[%clk 0:01:16.3]} 18... Qxh5 {[%clk
0:01:53.4]} 19. Qxc6 {[%clk 0:01:16]} 19... Bb7 {[%clk 0:00:44.1]} 20. Qxb7
{[%clk 0:01:15]} 20... Rb8 {[%clk 0:00:44.4]} 21. Qd7 {[%clk 0:01:08.4]} 21...
Qg5 {[%clk 0:00:28]} 22. Re1 {[%clk 0:00:38.4]} 22... Bxh2 {[%clk 0:00:26.8]}
23. Qh3 {[%clk 0:00:34.8]} 23... Bd6 {[%clk 0:00:24.3]} 24. Kb1 {[%clk
0:00:31.1]} 24... Qd5 {[%clk 0:00:18.5]} 25. Qh7+ {[%clk 0:00:24.2]} 25... Kf8
{[%clk 0:00:18.9]} 26. Qh8+ {[%clk 0:00:24.1]} 26... Ke7 {[%clk 0:00:19.6]} 27.
Qxg7 {[%clk 0:00:24.5]} 27... a5 {[%clk 0:00:15.6]} 28. Rc1 {[%clk 0:00:14.3]}
28... axb4 {[%clk 0:00:14.8]} 29. a4 {[%clk 0:00:14.8]} 29... b3 {[%clk
0:00:14.4]} 30. Qg4 {[%clk 0:00:13]} 30... Qa5 {[%clk 0:00:08.1]} 31. Qe4+
{[%clk 0:00:13]} 31... Kf8 {[%clk 0:00:08]} 32. Qc6 {[%clk 0:00:13.1]} 32... Bb4
{[%clk 0:00:04.8]} 33. Bb5 {[%clk 0:00:11.3]} 33... Qd8 {[%clk 0:00:04.1]} 34.
Qc4 {[%clk 0:00:10.6]} 34... Qd6 {[%clk 0:00:03.7]} 35. Qxb3 {[%clk 0:00:10]}
35... Ba5 {[%clk 0:00:04.3]} 36. Rc6 {[%clk 0:00:09.6]} 36... Qg3 {[%clk
0:00:04.3]} 37. Qa3+ {[%clk 0:00:07.6]} 37... Kg7 {[%clk 0:00:04]} 38. Qd6
{[%clk 0:00:06.8]} 38... Qe1+ {[%clk 0:00:03.5]} 39. Ka2 {[%clk 0:00:07]} 39...
Qb4 {[%clk 0:00:02.7]} 40. Qxf6+ {[%clk 0:00:06.8]} 40... Kf8 {[%clk 0:00:02.8]}
41. Qh6+ {[%clk 0:00:06.8]} 41... Ke8 {[%clk 0:00:02.8]} 42. Rc4+ {[%clk
0:00:06.2]} 42... Qxb5 {[%clk 0:00:02.5]} 43. axb5 {[%clk 0:00:06.5]} 43... Rxb5
{[%clk 0:00:03.4]} 44. Qc6+ {[%clk 0:00:07]} 44... Ke7 {[%clk 0:00:04.3]} 45.
Qxb5 {[%clk 0:00:07.9]} 45... Bc7 {[%clk 0:00:04.8]} 46. Rc6 {[%clk 0:00:08.8]}
46... Bd6 {[%clk 0:00:05.7]} 47. Qb7+ {[%clk 0:00:09.2]} 47... Kd8 {[%clk
0:00:05.4]} 48. Rc8# {[%clk 0:00:09.1]} 1-0